fUSD/lending_fUSD_20240805
["ID","MTS","AMOUNT","RATE_DAILY","PERIOD"]
[334209293,1722840294702,799.09,8.6e-05,2]
[334209294,1722840409187,766.41777296,8.6e-05,2]
[334209296,1722840506069,-646.388186,9.822e-05,2]
[334209297,1722840506112,-6851.0773,9.872e-05,2]
[334209298,1722840506164,-192.14261377,9.872e-05,2]
[334209299,1722840506209,-166.10608447,9.971e-05,2]
[334209328,1722840632629,-150.0,9.722e-05,2]
[334209330,1722840632641,-2827.63233919,9.972e-05,2]
[334209332,1722840632654,-731.05459485,9.972e-05,2]
[334209334,1722840632666,-607.1508,9.972e-05,2]
[334209344,1722840633166,-2016.18963598,9.972e-05,2]
[334209345,1722840633177,-300.0,9.999e-05,2]
[334209346,1722840633188,-17965.7262621,0.0001,2]
[334209347,1722840633199,-156.1607406,0.0001,2]
[334209348,1722840633209,-150.0,0.00010274,2]
[334209349,1722840633220,-150.0,0.00010284,2]
[334209350,1722840633231,-23900.0,0.00010285,2]
[334209351,1722840633241,-250.0,0.0001029,2]
[334209352,1722840633251,-484.74,0.00010292,2]
[334209353,1722840633262,-4645.77,0.00010298,2]
[334209354,1722840633272,-513.03,0.00010298,2]
[334209355,1722840633282,-135.8952669,0.00010299,2]
[334209356,1722840633294,-14069.94971281,0.00010299,2]
[334209357,1722840633304,-150.99,0.00010299,2]
[334209358,1722840633314,-150.99,0.00010299,2]
[334209359,1722840633324,-6806.88304797,0.000103,2]
[334209360,1722840633379,-1001.55012815,0.000103,2]
[334209361,1722840633395,-1007.07587274,0.000103,2]
[334209362,1722840633408,-1515.87151822,0.000103,2]
[334209363,1722840633419,-2938.65227929,0.000103,2]
[334209364,1722840633431,-791.24822385,0.000103,2]
[334209365,1722840633442,-84.24502978,0.000103,2]
[334209366,1722840633452,-2172.591,0.000103,2]
[334209367,1722840633463,-500.45272681,0.00010321,2]
[334209368,1722840633599,-301.52727319,0.00010321,2]
[334209369,1722840633609,-214.91841102,0.00010383,2]
[334209372,1722840633620,-285.08158898,0.00010383,2]
[334209375,1722840633637,-304.92,0.00010401,2]
[334209377,1722840633648,-427.04153846,0.00010459,2]
[334209379,1722840633661,-522.68846154,0.00010459,2]
[334209381,1722840633671,-160.10946266,0.000105,2]
[334209383,1722840633684,-2562.09038726,0.000105,2]
[334209385,1722840633696,-450.0,0.000105,2]
[334209387,1722840633707,-3556.3132492,0.000105,2]
[334209565,1722840638631,-775.44461026,0.000105,2]
[334209673,1722840639956,-929.83718108,0.000105,2]
[334209675,1722840639968,-360.88,0.0001053,2]
[334209677,1722840639981,-406.45,0.00010553,2]
[334209679,1722840639993,-500.0,0.00010659,2]
[334209681,1722840640006,-5440.97188934,0.00010659,2]
[334209684,1722840640023,-862.38778996,0.00010659,2]
[334209686,1722840640036,-1391.18950319,0.00010659,2]
[334209688,1722840640049,-479.23585153,0.00010659,2]
[334209691,1722840640062,-500.0,0.00010659,2]
[334209693,1722840640075,-2005.28276911,0.00010659,2]
[334209695,1722840640087,-10523.92188258,0.00010659,2]
[334209697,1722840640100,-16092.24031429,0.00010659,2]
[334209699,1722840640110,-784.09,0.00010659,2]
[334209701,1722840640121,-499.99,0.00010659,2]
[334209703,1722840640134,-299.99,0.00010659,2]
[334209704,1722840640145,-21067.911,0.00010659,2]
[334209706,1722840640155,-9999.99,0.00010759,2]
[334209707,1722840640165,-5342.6,0.00010759,2]
[334209708,1722840640177,-613.972,0.00010759,2]
[334209709,1722840640189,-799.09,0.00010864,2]
[334209710,1722840640200,-167.65539516,0.000109,2]
[334209711,1722840640211,-1000.0,0.000109,2]
[334209712,1722840640222,-183.57803401,0.000109,2]
[334209713,1722840640233,-1000.0,0.00010902,2]
[334209714,1722840640244,-250.0,0.00010959,2]
[334209715,1722840640254,-3290.79,0.00010959,2]
[334209716,1722840640264,-394.98,0.00010959,2]
[334209717,1722840640274,-1000.0,0.00010959,2]
[334209718,1722840640284,-329.15,0.00010959,2]
[334209719,1722840640295,-274.29,0.00010959,2]
[334209720,1722840640307,-228.58,0.00010959,2]
[334209721,1722840640317,-190.48,0.00010959,2]
[334209722,1722840640328,-150.0,0.00010959,2]
[334209723,1722840640339,-158.73,0.00010959,2]
[334209724,1722840640350,-793.7,0.00010959,2]
[334209725,1722840640361,-630.4,0.00010959,2]
[334209726,1722840640371,-414.57551756,0.00010985,2]
[334209727,1722840640388,-526.30586485,0.00010985,2]
[334209728,1722840640399,-1121.69954399,0.00010985,2]
[334209729,1722840640410,-696.84426808,0.00010985,2]
[334209730,1722840640423,-1856.5631075,0.00010985,2]
[334209731,1722840640435,-174.44218887,0.00010985,2]
[334209732,1722840640445,-370.35938797,0.00010985,2]
[334209733,1722840640454,-450.85612316,0.00010985,2]
[334209734,1722840640465,-729.17517403,0.00010985,2]
[334209735,1722840640478,-76.66178842,0.00010985,2]
[334209736,1722840640489,-399.15954503,0.00010999,2]
[334209737,1722840640503,-20.84045497,0.00010999,2]
[334209738,1722840640513,-151.0,0.00011,2]
[334209739,1722840640523,-200.10905133,0.00011,2]
[334209740,1722840640533,-550.0,0.00011,2]
[334209741,1722840640543,-829.92,0.00011,2]
[334209742,1722840640553,-515.8414942,0.00011005,2]
[334209743,1722840640565,-1123.0237058,0.00011005,2]
[334209745,1722840640575,-299.442,0.00011071,2]
[334209746,1722840640585,-155.0,0.00011105,2]
[334209748,1722840640595,-68.3260882,0.00011105,2]
[334209750,1722840640607,-3050.64580325,0.00011105,2]
[334209752,1722840640618,-294.78508566,0.00011105,2]
[334209753,1722840640633,-2144.62791432,0.00011105,2]
[334209754,1722840640643,-298.85665814,0.00011105,2]
[334209755,1722840640657,-155.21946092,0.00011105,2]
[334209756,1722840640667,-521.9105533,0.00011105,2]
[334209757,1722840640677,-1049.46036723,0.00011105,2]
[334209758,1722840640688,-213.49160856,0.00011105,2]
[334209759,1722840640699,-155.10521845,0.00011105,2]
[334209760,1722840640710,-155.0,0.00011105,2]
[334209761,1722840640720,-155.0,0.00011105,2]
[334209762,1722840640730,-155.26427603,0.00011105,2]
[334209763,1722840640740,-155.0,0.00011105,2]
[334209764,1722840640751,-367.64405093,0.00011105,2]
[334209765,1722840640761,-1184.26383039,0.00011105,2]
[334209766,1722840640771,-186.32,0.00011286,2]
[334209767,1722840640781,-186.32,0.00011289,2]
[334209768,1722840640792,-186.32,0.00011292,2]
[334209769,1722840640803,-186.32,0.00011295,2]
[334209770,1722840640813,-186.32,0.00011298,2]
[334209771,1722840640823,-186.32,0.00011301,2]
[334209772,1722840640833,-255.0,0.00011303,2]
[334209773,1722840640843,-186.32,0.00011304,2]
[334209774,1722840640854,-186.32,0.00011307,2]
[334209775,1722840640867,-186.32,0.0001131,2]
[334209776,1722840640877,-186.32,0.00011313,2]
[334209777,1722840640891,-186.32,0.00011316,2]
[334209778,1722840640903,-186.32,0.00011319,2]
[334209779,1722840640914,-186.32,0.00011322,2]
[334209780,1722840640923,-186.32,0.00011325,2]
[334209781,1722840640933,-186.32,0.00011327,2]
[334209782,1722840640943,-186.32,0.0001133,2]
[334209783,1722840640953,-186.32,0.00011333,2]
[334209784,1722840640963,-186.32,0.00011336,2]
[334209785,1722840640973,-186.32,0.00011339,2]
[334209786,1722840640983,-186.32,0.00011342,2]
[334209787,1722840640995,-170.123765,0.00011475,2]
[334209788,1722840641006,-299.442,0.00011652,2]
[334209789,1722840641016,-170.123765,0.00011762,2]
[334209790,1722840641027,-85.76010721,0.00012049,2]
[334209791,1722840641040,-84.36365779,0.00012049,2]
[334209792,1722840641051,-587.0,0.00012099,2]
[334209793,1722840641062,-1000.0,0.00012265,2]
[334209794,1722840641074,-299.442,0.00012295,2]
[334209795,1722840641085,-433.0,0.00012424,2]
[334209796,1722840641095,-10000.0,0.00012439,2]
[334209797,1722840641106,-7500.0,0.00012439,2]
[334209798,1722840641116,-473.23480953,0.00012475,2]
[334209799,1722840641127,-170.58669655,0.00012537,2]
[334209800,1722840641144,-177.80166587,0.00012539,2]
[334209801,1722840641154,-209.298801,0.00012539,2]
[334209802,1722840641165,-197241.58996427,0.0001254,2]
[334209803,1722840641178,-1656.96940033,0.0001254,2]
[334209804,1722840641191,-2109.73310926,0.0001254,2]
[334209805,1722840641205,-66693.65789274,0.0001254,2]
[334209806,1722840641217,-1153.0,0.0001254,2]
[334209807,1722840641231,-5486.590707,0.0001254,2]
[334209808,1722840641245,-2879.43368562,0.0001254,2]
[334209809,1722840641257,-49112.65287047,0.0001254,2]
[334209810,1722840641270,-1999.05404821,0.0001254,2]
[334209811,1722840641283,-251.63,0.0001254,2]
[334209812,1722840641295,-10803.8,0.0001254,2]
[334209813,1722840641308,-570.23685725,0.0001254,2]
[334209814,1722840641320,-2257.8360749,0.0001254,2]
[334209815,1722840641331,-424.88308538,0.0001254,2]
[334209816,1722840641344,-44490.25278313,0.0001254,2]
[334209817,1722840641356,-322.17496743,0.0001254,2]
[334209818,1722840641369,-335.24469126,0.0001254,2]
[334209819,1722840641384,-1294.19060398,0.0001254,2]
[334209820,1722840641396,-1803.52865084,0.0001254,2]
[334209821,1722840641409,-3163.29177813,0.0001254,2]
[334209822,1722840641422,-300.32,0.0001254,2]
[334209823,1722840641434,-548.19304332,0.0001254,2]
[334209824,1722840641447,-586.27968751,0.0001254,2]
[334209825,1722840641461,-1142.15174804,0.0001254,2]
[334209826,1722840641473,-519.980028,0.0001254,2]
[334209827,1722840641485,-3450.49798637,0.0001254,2]
[334209829,1722840641498,-304.484,0.0001254,2]
[334209831,1722840641510,-7223.12982135,0.0001254,2]
[334209833,1722840641523,-9901.01985224,0.0001254,2]
[334209834,1722840641535,-5085.22599903,0.0001254,2]
[334209836,1722840641546,-5726.34454775,0.0001254,2]
[334209838,1722840641558,-2212.331545,0.0001254,2]
[334209840,1722840641569,-2209.35927197,0.0001254,2]
[334209841,1722840641581,-778.68483223,0.0001254,2]
[334209843,1722840641593,-1336.25471501,0.0001254,2]
[334209845,1722840642296,-2384.7960601,0.00011959,2]
[334209846,1722840642306,-2721.42117389,0.0001254,2]
[334209847,1722840642317,-22512.11144,0.0001254,2]
[334209848,1722840642329,-6423.76062405,0.0001254,2]
[334209849,1722840642504,-3342.64682337,0.0001254,2]
[334209850,1722840642516,-314.79169517,0.0001254,2]
[334209851,1722840642527,-1227.44274453,0.0001254,2]
[334209852,1722840642539,-903.86667844,0.0001254,2]
[334209853,1722840642551,-1343.58541033,0.0001254,2]
[334209854,1722840642563,-222842.0381612,0.0001254,2]
[334209855,1722840642573,-154.53334119,0.00012575,2]
[334209856,1722840642583,-3519.1592,0.00012675,2]
[334209857,1722840642593,-400.0,0.000129,4]
[334209858,1722840642602,-486.5,0.00013,2]
[334209859,1722840642612,-600.0,0.00013,2]
[334209860,1722840642622,-299.442,0.00013006,2]
[334209861,1722840642636,-799.09,0.00013128,2]
[334209862,1722840642646,-1582.0,0.0001317,2]
[334209863,1722840642656,-622.0,0.0001317,2]
[334209864,1722840642666,-1925.0,0.0001317,2]
[334209865,1722840642675,-1256.0,0.0001317,2]
[334209866,1722840642686,-451.0,0.0001317,2]
[334209867,1722840642696,-574.498,0.0001317,2]
[334209868,1722840642705,-810.0,0.0001317,2]
[334209869,1722840642715,-1552.0,0.0001317,2]
[334209870,1722840642725,-276.707,0.0001317,2]
[334209871,1722840642735,-680.337,0.0001317,2]
[334209872,1722840642745,-1747.0,0.0001317,2]
[334209873,1722840643027,-150.0,0.0001317,2]
[334209874,1722840643039,-3288.0,0.0001317,2]
[334209875,1722840643050,-150.27,0.0001317,2]
[334209876,1722840643061,-5837.0,0.0001317,2]
[334209877,1722840643071,-21737.0,0.0001317,2]
[334209878,1722840643081,-5128.0,0.0001317,2]
[334209879,1722840643092,-288.0,0.0001317,2]
[334209880,1722840643103,-1685.756,0.0001317,2]
[334209881,1722840643114,-1203.0,0.0001317,2]
[334209882,1722840643125,-823.0,0.00013309,2]
[334209883,1722840643142,-4365.69390637,0.00013599,2]
[334209884,1722840643153,-242.33744152,0.00013599,2]
[334209885,1722840643163,-1000.0,0.00013627,2]
[334209886,1722840643172,-736.0,0.00013647,2]
[334209887,1722840643182,-10000.0,0.00013681,2]
[334209888,1722840643192,-413.57,0.00013699,2]
[334209889,1722840643201,-431.32,0.00013699,2]
[334209890,1722840643211,-200.0,0.00013699,2]
[334209891,1722840643220,-11631.49,0.00013699,2]
[334209892,1722840643230,-2751.0,0.00013699,2]
[334209893,1722840643240,-299.442,0.00013797,2]
[334209894,1722840643250,-500.0,0.00013799,2]
[334209895,1722840643260,-500.0,0.00013799,2]
[334209896,1722840643269,-200.0,0.00013799,2]
[334209897,1722840643279,-586.86612759,0.00013799,2]
[334209898,1722840643288,-500.0,0.00013799,2]
[334209899,1722840643298,-900.0,0.000138,5]
[334209900,1722840643307,-479725.80639,0.000138,3]
[334209901,1722840643318,-25307.81580501,0.00013859,2]
[334209902,1722840643328,-29506.32533091,0.00013859,2]
[334209903,1722840643337,-1300.0,0.000139,5]
[334209904,1722840643347,-115453.393618,0.000139,3]
[334209905,1722840643357,-164.66,0.00013973,2]
[334209907,1722840643367,-154.78,0.00013973,2]
[334209909,1722840643377,-155.09214186,0.00014105,2]
[334209911,1722840643393,-473.23480946,0.0001425,2]
[334209912,1722840643402,-167.65539512,0.00014262,2]
[334209913,1722840643412,-15473.55356065,0.00014451,2]
[334209915,1722840643421,-1152.0,0.0001464,2]
[334209917,1722840643430,-299.442,0.00014677,2]
[334209919,1722840643440,-360.88,0.00014742,2]
[334209921,1722840643450,-154.53334117,0.00014805,2]
[334209923,1722840643460,-2784.4308,0.000149,2]
[334209924,1722840643469,-441.7725,0.000149,2]
[334209925,1722840643479,-551.0,0.000149,2]
[334209926,1722840643488,-226.0,0.000149,2]
[334209927,1722840643498,-1000.0,0.0001499,2]
[334209928,1722840643507,-20036.3721231,0.00015,7]
[334209929,1722840643517,-650.0,0.00015,2]
[334209930,1722840643526,-261.53096624,0.00015,15]
[334209931,1722840643535,-1108.0,0.00015005,2]
[334209936,1722840643545,-300.0,0.00015068,2]
[334209939,1722840643554,-200.0,0.00015133,2]
[334209941,1722840643563,-799.09,0.00015392,2]
[334209944,1722840643573,-299.442,0.00015661,2]
[334209947,1722840643583,-2425.0,0.00015854,2]
[334209949,1722840643592,-35705.60054376,0.00015999,2]
[334209951,1722840643602,-35705.60054376,0.00015999,2]
[334209953,1722840643612,-500.0,0.00016,2]
[334209955,1722840643621,-500.0,0.00016,2]
[334209957,1722840643635,-500.0,0.00016,2]
[334209959,1722840643644,-500.0,0.00016,2]
[334209961,1722840643654,-500.0,0.00016,2]
[334209964,1722840643663,-500.0,0.00016,2]
[334209967,1722840643672,-500.0,0.00016,2]
[334209971,1722840643682,-500.0,0.00016,2]
[334209975,1722840643691,-500.0,0.00016,2]
[334209978,1722840643700,-500.0,0.00016,2]
[334209982,1722840643710,-500.0,0.00016,2]
[334209986,1722840643720,-500.0,0.00016,2]
[334209990,1722840643730,-500.0,0.00016,2]
[334209994,1722840643739,-500.0,0.00016,2]
[334209998,1722840643749,-500.0,0.00016,2]
[334210002,1722840643759,-500.0,0.00016,2]
[334210005,1722840643768,-500.0,0.00016,2]
[334210008,1722840643777,-500.0,0.00016,2]
[334210011,1722840643787,-500.0,0.00016,2]
[334210014,1722840643796,-500.0,0.00016,2]
[334210017,1722840643805,-500.0,0.00016,2]
[334210020,1722840643815,-615.57,0.00016,2]
[334210023,1722840643824,-500.0,0.00016,2]
[334210026,1722840643835,-473.23480946,0.00016025,2]
[334210029,1722840643844,-199.75663779,0.000161,2]
[334210031,1722840643854,-1613.0,0.00016103,2]
[334210034,1722840643865,-1582.0,0.0001617,2]
[334210036,1722840643875,-622.0,0.0001617,2]
[334210039,1722840643889,-1925.0,0.0001617,2]
[334210041,1722840643901,-1256.0,0.0001617,2]
[334210043,1722840643911,-451.0,0.0001617,2]
[334210045,1722840643921,-446.0,0.0001617,2]
[334210047,1722840643930,-810.0,0.0001617,2]
[334210049,1722840643941,-1552.0,0.0001617,2]
[334210050,1722840643950,-150.0,0.0001617,2]
[334210051,1722840643960,-550.0,0.0001617,2]
[334210052,1722840643971,-1747.0,0.0001617,2]
[334210053,1722840643981,-150.0,0.0001617,2]
[334210054,1722840643991,-3288.0,0.0001617,2]
[334210055,1722840644001,-150.0,0.0001617,2]
[334210056,1722840644011,-5837.0,0.0001617,2]
[334210057,1722840644021,-17355.131,0.0001617,2]
[334210058,1722840644031,-5128.0,0.0001617,2]
[334210059,1722840644041,-1671.0,0.0001617,2]
[334210060,1722840644050,-1203.0,0.0001617,2]
[334210061,1722840644060,-1000.0,0.00016353,2]
[334210062,1722840644071,-242.33744148,0.00016424,2]
[334210063,1722840644081,-300.0,0.00016438,2]
[334210064,1722840644091,-400.0,0.00016503,2]
[334210065,1722840644100,-427.923745,0.00016712,2]
[334210067,1722840644110,-299.442,0.00016762,2]
[334210069,1722840644119,-500.0,0.0001678,2]
[334210071,1722840644134,-4416.0,0.000168,2]
[334210073,1722840644144,-7272.30226502,0.00016855,2]
[334210075,1722840644154,-5847.33603509,0.00016952,2]
[334210076,1722840644164,-701.78604021,0.0001697,2]
[334210078,1722840644173,-3000.0,0.00017,2]
[334210079,1722840644184,-700.0,0.00017,2]
[334210080,1722840644196,-154.53334117,0.00017035,2]
[334210081,1722840644206,-152.0,0.00017183,3]
[334210082,1722840644216,-5000.0,0.00017259,2]
[334210083,1722840644226,-5400.48698057,0.00017399,2]
[334210084,1722840644236,-3010.4156,0.00017399,2]
[334210085,1722840644246,-427.923745,0.00017534,2]
[334210086,1722840644255,-413.57,0.00017534,2]
[334210087,1722840644266,-1936.48,0.000176,7]
[334210088,1722840644276,-167.65539512,0.00017623,2]
[334210089,1722840644286,-799.09,0.00017656,2]
[334210090,1722840644297,-1810.0,0.00017714,2]
[334210091,1722840644307,-473.23480946,0.000178,2]
[334210092,1722840644316,-1837.15487351,0.00017807,2]
[334210093,1722840644326,-152.0,0.00017847,4]
[334210094,1722840644335,-500.0,0.00017876,2]
[334210095,1722840644345,-500.0,0.00017876,2]
[334210097,1722840644356,-299.442,0.00018001,2]
[334210098,1722840644366,-3402.25151975,0.00018081,2]
[334210099,1722840644376,-1005.0,0.000183,2]
[334210100,1722840644394,-427.923745,0.00018356,2]
[334210101,1722840644404,-420.02583415,0.00018369,2]
[334210102,1722840644414,-500.0,0.00018424,2]
[334210103,1722840644424,-1274.80555961,0.00018499,2]
[334210104,1722840644434,-22644.47047611,0.00018499,2]
[334210105,1722840644445,-600.0,0.00018506,2]
[334210106,1722840644455,-152.0,0.00018511,5]
[334210107,1722840644465,-1176.15950994,0.00018547,2]
[334210108,1722840644474,-1176.15950994,0.00018547,2]
[334210109,1722840644484,-1000.0,0.0001855,2]
[334210110,1722840644494,-500.0,0.0001855,2]
[334210111,1722840644503,-200.0,0.0001855,2]
[334210112,1722840644512,-387.98216776,0.00018587,2]
[334210113,1722840644522,-649.45918791,0.00018599,2]
[334210114,1722840644531,-300.02,0.00018699,2]
[334210115,1722840644541,-5211.47557005,0.00018699,2]
[334210116,1722840644550,-3000.0,0.000187,2]
[334210117,1722840644560,-500.0,0.0001877,2]
[334210118,1722840644570,-203236.8840667,0.00018795,2]
[334210119,1722840644580,-9479.3710764,0.00018795,2]
[334210120,1722840644589,-20097.6038925,0.00018795,2]
[334210121,1722840644599,-4770.8953925,0.000188,7]
[334210122,1722840644608,-225.1610964,0.000188,7]
[334210123,1722840644618,-509.3526,0.000188,2]
[334210124,1722840644627,-150.5,0.00018818,30]
[334210125,1722840644641,-150.5,0.00018828,30]
[334210126,1722840644650,-150.5,0.00018838,30]
[334210127,1722840644660,-200.0,0.00018873,2]
[334210128,1722840644669,-179.14280524,0.00018873,2]
[334210129,1722840644680,-357.23030475,0.00018898,2]
[334210130,1722840644689,-1800.0,0.000189,6]
[334210131,1722840644699,-500.0,0.00018972,2]
[334210132,1722840644709,-500.0,0.00018972,2]
[334210133,1722840644719,-1500.0,0.00018999,2]
[334210134,1722840644728,-232.67384416,0.00018999,2]
[334210135,1722840644738,-313.53274802,0.00018999,2]
[334210136,1722840644747,-628.24443844,0.00018999,2]
[334210137,1722840644756,-155.0,0.00018999,2]
[334210138,1722840644766,-519.81232661,0.00018999,2]
[334210139,1722840644776,-548.80635531,0.00018999,2]
[334210140,1722840644786,-439.81414465,0.00018999,2]
[334210141,1722840644796,-400.0,0.00018999,2]
[334210142,1722840644805,-155.65930134,0.00018999,2]
[334210143,1722840644814,-502.0,0.00019,5]
[334210144,1722840644825,-2448.54548337,0.00019,2]
[334210145,1722840644835,-750.0,0.00019,2]
[334210146,1722840644844,-276.3124384,0.00019045,2]
[334210147,1722840644854,-155.86790977,0.00019045,2]
[334210148,1722840644867,-158.90413619,0.00019045,2]
[334210149,1722840644877,-155.0,0.00019045,2]
[334210150,1722840644892,-155.14971983,0.00019045,2]
[334210151,1722840644901,-347.45998025,0.00019045,2]
[334210152,1722840644914,-255.03705298,0.00019045,2]
[334210153,1722840644924,-628.66127068,0.00019045,3]
[334210154,1722840644934,-155.0,0.00019045,2]
[334210155,1722840644944,-155.0,0.00019045,2]
[334210156,1722840644954,-239.55649123,0.00019045,2]
[334210157,1722840644964,-1000.0,0.000191,2]
[334210158,1722840644974,-173.03877897,0.0001914,2]
[334210159,1722840644984,-1582.0,0.0001917,2]
[334210160,1722840644993,-622.0,0.0001917,2]
[334210161,1722840645003,-1925.0,0.0001917,2]
[334210162,1722840645013,-1256.0,0.0001917,2]
[334210163,1722840645023,-451.0,0.0001917,2]
[334210164,1722840645032,-446.0,0.0001917,2]
[334210165,1722840645042,-810.0,0.0001917,2]
[334210166,1722840645051,-1552.0,0.0001917,2]
[334210167,1722840645061,-150.0,0.0001917,2]
[334210168,1722840645070,-550.0,0.0001917,2]
[334210169,1722840645080,-1747.0,0.0001917,2]
[334210170,1722840645089,-150.0,0.0001917,2]
[334210171,1722840645099,-3288.0,0.0001917,2]
[334210172,1722840645108,-150.0,0.0001917,2]
[334210173,1722840645118,-5837.0,0.0001917,2]
[334210174,1722840645127,-5128.0,0.0001917,2]
[334210175,1722840645142,-1671.0,0.0001917,2]
[334210176,1722840645151,-1203.0,0.0001917,2]
[334210177,1722840645160,-152.0,0.00019175,6]
[334210178,1722840645170,-297.29865721,0.00019177,2]
[334210179,1722840645179,-297.29865721,0.00019177,2]
[334210180,1722840645189,-155.0,0.00019177,2]
[334210181,1722840645199,-401.06988909,0.00019177,2]
[334210182,1722840645208,-155.0,0.00019177,2]
[334210183,1722840645219,-427.923745,0.00019178,2]
[334210184,1722840645228,-750.0,0.000192,2]
[334210185,1722840645238,-218.77944705,0.0001924,2]
[334210186,1722840645247,-242.33744148,0.0001925,2]
[334210187,1722840645257,-154.53334117,0.00019265,2]
[334210188,1722840645267,-1074.00301579,0.00019319,2]
[334210189,1722840645277,-211.57315347,0.00019319,2]
[334210190,1722840645286,-155.0,0.00019319,2]
[334210191,1722840645296,-454.307743,0.00019319,2]
[334210192,1722840645306,-1074.00301579,0.00019319,2]
[334210193,1722840645316,-206.64332473,0.00019319,2]
[334210194,1722840645327,-155.0,0.00019319,2]
[334210195,1722840645337,-155.34386906,0.00019319,2]
[334210196,1722840645347,-210.93263361,0.00019387,2]
[334210197,1722840645357,-203.28844738,0.00019387,2]
[334210198,1722840645367,-299.442,0.00019397,2]
[334210199,1722840645377,-200.0,0.00019433,2]
[334210200,1722840645391,-1000.0,0.000195,2]
[334210201,1722840645401,-500.0,0.0001952,2]
[334210202,1722840645411,-500.0,0.0001952,2]
[334210203,1722840645420,-473.23480946,0.00019575,2]
[334210204,1722840645430,-3000.0,0.0001967,2]
[334210205,1722840645440,-3000.0,0.000197,2]
[334210206,1722840645451,-11495.0,0.000198,3]
[334210207,1722840645461,-152.0,0.00019838,7]
[334210208,1722840645470,-170.58669655,0.00019897,2]
[334210209,1722840645480,-23450.4505,0.000199,2]
[334210210,1722840645489,-100000.0,0.000199,2]
[334210211,1722840645498,-8229.3478,0.000199,2]
[334210212,1722840645507,-799.09,0.00019919,2]
[334210213,1722840645517,-155.0,0.0002,2]
[334210214,1722840645526,-166.95206089,0.0002,2]
[334210215,1722840645536,-6290.2745887,0.0002,2]
[334210216,1722840645545,-1416.84455916,0.0002,2]
[334210217,1722840645555,-500.0,0.0002,20]
[334210218,1722840645565,-150.0,0.0002,2]
[334210219,1722840645574,-423.03044662,0.0002,2]
[334210220,1722840645584,-61589.15460258,0.0002,2]
[334210221,1722840645594,-1000.0,0.0002,7]
[334210222,1722840645603,-2000.0,0.0002,2]
[334210223,1722840645612,-700.0,0.0002,2]
[334210224,1722840645621,-155.0,0.0002,2]
[334210225,1722840645633,-244.80203452,0.0002,2]
[334210226,1722840645642,-237.48122071,0.0002,2]
[334210227,1722840645651,-158.32081381,0.0002,2]
[334210228,1722840645661,-2256.42066736,0.0002,2]
[334210229,1722840645670,-1259.47188784,0.0002,2]
[334210230,1722840645680,-1430.410507,0.0002,2]
[334210231,1722840645689,-1497.71,0.0002,2]
[334210232,1722840645699,-427.923745,0.0002,2]
[334210233,1722840645708,-500.0,0.00020001,2]
[334210234,1722840645718,-245000.0,0.00020029,2]
[334210235,1722840645727,-800.0,0.00020038,2]
[334210236,1722840645736,-1678.83,0.00020039,2]
[334210237,1722840645746,-1400.0,0.0002005,2]
[334210238,1722840645755,-500.0,0.00020059,2]
[334210239,1722840645764,-500.0,0.00020068,2]
[334210240,1722840645773,-900.0,0.00020068,2]
[334210241,1722840645783,-1100.0,0.00020068,2]
[334210242,1722840645792,-500.0,0.000201,2]
[334210243,1722840645802,-10527.99021344,0.0002012,2]
[334210244,1722840645811,-1400.0,0.00020193,2]
[334210245,1722840645820,-700.0,0.00020255,2]
[334210246,1722840645829,-500.0,0.00020265,2]
[334210247,1722840645839,-800.0,0.00020275,2]
[334210248,1722840645848,-500.0,0.00020305,2]